bitfinex/quotes_ETHUSD_20251127
["timestamp","ask_amount","ask_price","bid_price","bid_amount"]
[1764276413701,6.66527989,3044.2,3044.1,0.9622]
[1764276413906,6.87327989,3044.2,3044.1,1.1557]
[1764276414788,5.36816963,3044.2,3044.1,1.1557]
[1764276414993,5.40923132,3044.2,3044.1,1.1557]
[1764276415196,5.50923132,3044.2,3044.1,1.1557]
[1764276415388,5.50923132,3044.2,3044.1,0.9622]
[1764276416417,5.50923132,3044.2,3044.1,0.4814]
[1764276417717,5.50923132,3044.2,3044.1,0.9622]
[1764276418323,5.50923132,3044.2,3044.1,1.1557]
[1764276419001,6.16453856,3044.2,3044.1,1.1557]
[1764276420603,1.01799136,3044.2,3044.1,1.1557]
[1764276420806,3.80219971,3044.2,3044.1,1.1557]
[1764276422326,0.51726443,3044.2,3044.1,1.1557]
[1764276422915,0.002,3044.6,3044.1,7.63492881]
[1764276423246,0.30762823,3044.5,3044.2,4.75799706]
[1764276423448,0.002,3044.6,3044.5,0.487]
[1764276423932,0.002,3044.6,3044.5,0.9678]
[1764276425643,0.002,3044.6,3044.5,4.25241159]
[1764276430336,0.002,3044.6,3044.5,0.9678]
[1764276430541,0.002,3044.6,3044.5,1.72563367]
[1764276433024,0.002,3044.6,3044.5,5.01024526]
[1764276433346,0.002,3044.6,3044.5,5.0183119]
[1764276433545,0.002,3044.6,3044.5,5.01024526]
[1764276434163,0.002,3044.6,3044.5,5.0183119]
[1764276434745,0.002,3044.6,3044.5,5.01024526]
[1764276436647,0.002,3044.6,3044.5,5.1183119]
[1764276436851,0.002,3044.6,3044.5,5.24985774]
[1764276439334,0.002,3044.6,3044.5,5.62358473]
[1764276440838,0.002,3044.6,3044.5,6.02908873]
[1764276441137,0.002,3044.7,3044.6,0.505504]
[1764276441348,0.002,3044.7,3044.6,6.25054968]
[1764276442451,0.002,3044.7,3044.6,9.53505339]
[1764276443338,0.002,3044.7,3044.6,9.66658539]
[1764276445472,0.002,3044.7,3044.6,10.04031238]
[1764276448559,0.002,3044.7,3044.6,9.66658539]
[1764276450156,0.002,3044.7,3044.6,9.53505339]
[1764276452683,0.63781089,3044.7,3044.5,0.75883367]
[1764276452892,0.002,3044.7,3044.6,4.15315078]
[1764276453081,0.002,3044.7,3044.6,4.25315078]
[1764276453082,0.30576421,3044.7,3044.6,4.25315078]
[1764276453389,0.002,3044.9,3044.6,4.25315078]
[1764276453390,0.002,3044.9,3044.7,1.13109811]
[1764276453571,0.002,3045.1,3045.0,4.42528373]
[1764276453773,0.002,3045.1,3045.0,5.38423689]
[1764276454078,0.002,3045.1,3045.0,5.59123689]
[1764276454757,0.002,3045.1,3045.0,8.87530913]
[1764276454958,0.002,3045.1,3045.0,8.86725597]
[1764276455159,0.002,3045.1,3045.0,10.36092492]
[1764276456983,0.002,3045.1,3045.0,13.55511054]
[1764276458681,0.002,3045.1,3045.0,10.27410177]
[1764276459064,0.002,3045.5,3045.2,0.1]
[1764276459387,0.002,3045.5,3045.4,0.505504]
[1764276459584,0.002,3045.5,3045.4,5.01360296]
[1764276459791,0.002,3045.5,3045.4,6.23030542]
[1764276460382,0.002,3045.5,3045.4,6.36813479]
[1764276461085,0.002,3045.5,3045.4,9.65177569]
[1764276461285,0.002,3045.5,3045.4,9.64373331]
[1764276462406,0.002,3045.5,3045.4,9.33673331]
[1764276462715,0.002,3045.5,3045.4,9.29890394]
[1764276463188,0.002,3045.5,3045.4,7.68156394]
[1764276463605,0.002,3045.5,3045.4,7.27605994]
[1764276467704,0.002,3045.5,3045.4,6.78525994]
[1764276467902,0.3361,3045.5,3045.4,4.73513747]
[1764276468109,0.3361,3045.5,3045.4,4.74317985]
[1764276468488,0.3361,3045.5,3045.4,8.80554232]
[1764276468489,0.002,3045.5,3045.4,8.80554232]
[1764276468689,0.002,3045.5,3045.4,8.79749994]
[1764276468888,0.002,3045.5,3045.4,8.89749994]
[1764276469106,0.002,3045.5,3045.4,9.27122693]
[1764276470313,0.002,3045.5,3045.4,8.79582693]
[1764276470688,0.002,3045.5,3045.4,9.27122693]
[1764276474501,0.002,3045.5,3045.4,9.67673093]
[1764276474693,0.002,3045.9,3045.8,0.505504]
[1764276474889,0.002,3045.9,3045.8,4.30749807]
[1764276475111,0.002,3045.9,3045.8,5.21364788]
[1764276476622,0.002,3045.9,3045.8,8.49685754]
[1764276476803,0.002,3045.9,3045.8,8.48882594]
[1764276477616,0.002,3045.9,3045.8,4.90606347]
[1764276477920,0.002,3045.9,3045.8,8.87058453]
[1764276478091,0.002,3045.9,3045.8,8.86255293]
[1764276481525,0.002,3045.9,3045.8,9.33805293]
[1764276483093,0.4591,3045.9,3045.8,4.08768646]
[1764276483294,0.4591,3045.9,3045.8,4.38253076]
[1764276483295,0.8187,3045.9,3045.8,4.38253076]
[1764276483538,1.003,3045.9,3045.8,0.37372699]
[1764276483902,1.003,3045.9,3045.7,0.72559411]
[1764276484097,0.3414,3045.7,3045.6,0.37372699]
[1764276484302,0.3414,3045.7,3045.6,3.66518924]
[1764276484504,0.8156,3045.7,3045.6,4.39078335]
[1764276484826,0.8156,3045.7,3045.6,0.37372699]
[1764276487346,1.12290637,3045.7,3045.6,0.37372699]
[1764276487943,1.12290637,3045.7,3045.4,0.001]
[1764276488154,0.4571,3045.5,3045.4,0.001]
[1764276488648,0.8167,3045.5,3045.4,0.001]
[1764276492165,3.46943743,3045.9,3045.4,0.001]
[1764276492166,0.002,3045.9,3045.4,1.1725353]
[1764276492371,0.002,3045.9,3045.7,3.10736247]
[1764276492574,0.002,3045.9,3045.8,0.00803281]
[1764276492948,0.3221,3045.9,3045.8,0.00803281]
[1764276493343,0.62917029,3045.9,3045.8,0.00803281]
[1764276494466,0.62917029,3045.9,3045.8,3.29124247]
[1764276494638,0.62917029,3045.9,3045.8,1.01359916]
[1764276494843,1.11437029,3045.9,3045.6,3.65706174]
[1764276495044,0.8073,3045.9,3045.6,6.940487]
[1764276495744,0.3221,3045.9,3045.6,6.940487]
[1764276496356,0.8073,3045.9,3045.6,6.940487]
[1764276496945,0.0049,3045.7,3045.6,3.65706174]
[1764276497150,0.0049,3045.7,3045.6,4.76216038]
[1764276501990,0.0069,3045.7,3045.6,4.76216038]
[1764276508694,0.002,3045.7,3045.6,5.23866038]
[1764276509296,0.30936898,3045.7,3045.6,5.23866038]
[1764276510705,0.30936898,3045.7,3045.6,4.86493339]
[1764276511201,0.30936898,3045.7,3045.6,4.38843339]
[1764276511581,1.11466898,3045.7,3045.5,3.28449919]
[1764276511785,0.31226898,3045.6,3045.5,3.28449919]
[1764276511988,0.79916898,3045.6,3045.5,3.28449919]
[1764276513200,0.31226898,3045.6,3045.5,3.28449919]
[1764276514787,0.31226898,3045.6,3045.5,3.29253887]
[1764276517298,0.31226898,3045.6,3045.5,4.0989194]
[1764276518610,0.31226898,3045.6,3045.5,7.28595999]
[1764276518774,0.79916898,3045.6,3045.5,0.001]
[1764276521514,0.80116898,3045.6,3045.5,0.001]
[1764276523614,0.30936898,3045.6,3045.5,0.4869]
[1764276523814,0.30936898,3045.6,3045.5,2.23141971]
[1764276524015,0.30936898,3045.6,3045.5,2.23945939]
[1764276525428,0.30936898,3045.6,3045.5,5.89671946]
[1764276526020,0.30936898,3045.6,3045.5,5.41831946]
[1764276526222,0.30936898,3045.6,3045.5,5.89671946]
[1764276526624,0.30936898,3045.6,3045.5,5.88867978]
[1764276528425,0.30936898,3045.6,3045.5,5.41027978]
[1764276528591,0.77536898,3045.6,3045.5,4.82437978]
[1764276528791,1.32316898,3045.6,3045.5,0.001]
[1764276529037,1.29689411,3045.5,3045.0,0.001]
[1764276529203,0.72559411,3045.0,3044.7,0.001]
[1764276529394,0.72559411,3045.0,3044.6,0.0001]
[1764276529395,4.2007347,3044.8,3044.6,0.0001]
[1764276529597,0.1,3044.5,3044.3,0.001]
[1764276529794,7.81502316,3044.4,3044.3,0.001]
[1764276530128,0.1,3044.3,3044.2,0.001]
[1764276530426,1.92586309,3044.3,3044.2,0.001]
[1764276530598,3.11479721,3044.3,3044.2,0.001]
[1764276532115,6.39962459,3044.3,3044.2,0.001]
[1764276532730,4.38509636,3044.3,3044.2,0.001]
[1764276532896,1.10026898,3044.3,3044.2,0.001]
[1764276533097,4.38509636,3044.3,3044.2,0.001]
[1764276534339,1.10026898,3044.3,3044.2,0.001]
[1764276534510,0.83596898,3044.3,3044.2,0.001]
[1764276534717,1.30726898,3044.3,3044.2,0.001]
[1764276534915,0.62896898,3044.3,3044.2,0.001]
[1764276535098,0.3216,3044.3,3044.2,0.001]
[1764276535302,0.7929,3044.3,3044.2,0.001]
[1764276537170,4.07772738,3044.3,3044.2,0.001]
[1764276537577,0.7929,3044.3,3044.2,0.001]
[1764276537746,4.07772738,3044.3,3044.2,0.001]
[1764276540384,4.07972738,3044.3,3044.2,0.001]
[1764276540605,0.7949,3044.3,3044.2,0.001]
[1764276540797,4.07972738,3044.3,3044.2,0.001]
[1764276541963,0.002,3044.3,3044.2,0.4869]
[1764276542168,0.3268,3044.3,3044.2,0.001]
[1764276542368,4.08152738,3044.3,3044.2,0.001]
[1764276543064,4.36894964,3044.3,3044.2,0.001]
[1764276543292,4.83884964,3044.3,3044.2,0.001]
[1764276545303,5.14405065,3044.3,3044.2,0.001]
[1764276545794,5.18511099,3044.3,3044.2,0.001]
[1764276549015,5.28511099,3044.3,3044.2,0.001]
[1764276549779,5.9107051,3044.3,3044.2,0.001]
[1764276550006,6.0107051,3044.3,3044.2,0.001]
[1764276550709,5.9107051,3044.3,3044.2,0.001]
[1764276550906,6.1187051,3044.3,3044.2,0.001]
[1764276551608,5.9107051,3044.3,3044.2,0.001]
[1764276551907,6.1187051,3044.3,3044.2,0.001]
[1764276552109,5.9107051,3044.3,3044.2,0.001]
[1764276552274,6.1187051,3044.3,3044.2,0.001]
[1764276557486,6.2187051,3044.3,3044.2,0.001]
[1764276558315,6.92719886,3044.3,3044.2,0.001]
[1764276558487,10.07862844,3044.3,3044.2,0.001]
[1764276559311,10.08110052,3044.3,3044.2,0.001]
[1764276560388,6.7886106,3044.3,3044.2,0.001]
[1764276562320,9.98110052,3044.3,3044.2,0.001]
[1764276562908,6.7886106,3044.3,3044.2,0.001]
[1764276563112,6.1107106,3044.3,3044.2,0.001]
[1764276563326,6.82357094,3044.3,3044.2,0.001]
[1764276563500,6.8825106,3044.3,3044.2,0.001]
[1764276566294,6.7825106,3044.3,3044.2,0.001]
[1764276566819,6.5745106,3044.3,3044.2,0.001]
[1764276567027,6.35977094,3044.3,3044.2,0.001]
[1764276569695,5.60244868,3044.3,3044.2,0.001]
[1764276572837,5.60267255,3044.3,3044.2,0.001]
[1764276574911,6.06647255,3044.3,3044.2,0.001]
[1764276576926,5.60267255,3044.3,3044.2,0.001]
[1764276577506,5.06987255,3044.3,3044.2,0.4664]
[1764276577705,5.06987255,3044.3,3044.2,0.4564]
[1764276577706,5.23681221,3044.3,3044.2,0.4564]
[1764276578927,5.27787255,3044.3,3044.2,0.4564]
[1764276579638,1.01839072,3044.3,3044.2,0.9368]
[1764276579932,0.30989696,3044.3,3044.2,0.9368]
[1764276580230,0.30989696,3044.3,3044.2,1.37904796]
[1764276580530,0.30989696,3044.3,3044.2,0.9368]
[1764276581355,3.59472434,3044.3,3044.2,0.9368]
[1764276582023,0.30989696,3044.3,3044.2,0.9368]
[1764276582344,3.59472434,3044.3,3044.2,0.4564]
[1764276582548,3.59472434,3044.3,3044.2,0.4716]
[1764276583340,3.94858468,3044.3,3044.1,0.001]
[1764276583536,0.30789696,3044.2,3044.1,0.001]
[1764276584053,0.30789696,3044.2,3044.1,0.4726]
[1764276584224,3.59283224,3044.2,3044.1,0.4726]
[1764276585268,4.40253224,3044.2,3044.1,0.001]
[1764276585625,4.44359393,3044.2,3044.1,0.001]
[1764276586421,3.84089393,3044.2,3044.1,0.4726]
[1764276586628,4.15369393,3044.2,3044.1,0.001]
[1764276586826,4.65059393,3044.2,3044.1,0.001]
[1764276587925,6.55887215,3044.2,3044.1,0.001]
[1764276588150,7.84144435,3044.2,3044.1,0.001]
[1764276588321,8.52483729,3044.2,3044.1,0.001]
[1764276588527,7.34340457,3044.2,3044.1,0.001]
[1764276590324,8.52396446,3044.2,3044.1,0.001]
[1764276590954,8.31696446,3044.2,3044.1,0.001]
[1764276591153,7.34440457,3044.2,3044.1,0.001]
[1764276591357,6.63537301,3044.2,3044.1,0.001]
[1764276591544,8.22868862,3044.2,3044.1,0.001]
[1764276598588,7.24351328,3044.2,3044.1,0.001]
[1764276598884,7.34351328,3044.2,3044.1,0.001]
[1764276599397,6.63000928,3044.2,3044.1,0.001]
[1764276599564,6.83800928,3044.2,3044.1,0.001]
[1764276599767,5.40751517,3044.2,3044.1,0.001]
[1764276600076,6.38217097,3044.2,3044.1,0.001]
[1764276601370,6.17417097,3044.2,3044.1,0.001]
[1764276601570,6.38217097,3044.2,3044.1,0.001]
[1764276602256,6.06937097,3044.2,3044.1,0.4726]
[1764276602454,3.84189393,3044.2,3044.1,1.1596]
[1764276602680,4.52642635,3044.2,3044.1,1.1596]
[1764276602885,3.59283224,3044.2,3044.1,1.1596]
[1764276603153,0.51589696,3044.2,3044.1,1.1596]
[1764276603357,3.80083224,3044.2,3044.1,1.1596]
[1764276603702,3.84189393,3044.2,3044.1,1.1596]
[1764276604198,3.80083224,3044.2,3044.1,1.1596]
[1764276604964,3.80083224,3044.2,3044.1,0.001]
[1764276605301,4.55066022,3044.2,3044.1,0.001]
[1764276605458,3.84189393,3044.2,3044.1,1.1596]
[1764276606091,3.84189393,3044.2,3044.1,0.4726]
[1764276607166,3.84389393,3044.2,3044.1,0.4726]
[1764276609703,3.63589393,3044.2,3044.1,1.1596]
[1764276609866,0.51789696,3044.2,3044.1,1.1596]
[1764276612600,4.13113224,3044.2,3044.1,0.001]
[1764276613026,3.59483224,3044.2,3044.1,0.467]
[1764276613328,3.80283224,3044.2,3044.1,0.9176]
[1764276613532,3.80283224,3044.2,3044.1,0.467]
[1764276614031,4.17379393,3044.2,3044.1,0.001]
[1764276614234,5.44796685,3044.2,3044.1,0.001]
[1764276615842,4.96786685,3044.2,3044.1,0.001]
[1764276616146,5.44796685,3044.2,3044.1,0.001]
[1764276616721,4.65389393,3044.2,3044.1,0.001]
[1764276617431,4.17379393,3044.2,3044.1,0.001]
[1764276619343,4.17379393,3044.2,3044.1,0.467]
[1764276619344,3.84389393,3044.2,3044.1,0.467]
[1764276619550,4.17219393,3044.2,3044.1,0.001]
[1764276620133,3.84389393,3044.2,3044.1,0.001]
[1764276620334,4.17379393,3044.2,3044.1,0.001]
[1764276623135,3.84389393,3044.2,3044.1,0.467]
[1764276623335,3.84335656,3044.2,3044.1,0.467]
[1764276623835,3.84335656,3044.2,3044.1,0.9176]
[1764276624954,0.30935959,3044.2,3044.1,1.1103]
[1764276625139,0.51735959,3044.2,3044.1,1.55003996]
[1764276625451,0.30935959,3044.2,3044.1,1.55003996]
[1764276626422,0.30935959,3044.2,3044.1,1.1103]
[1764276627151,3.59429487,3044.2,3044.1,1.1103]
[1764276627354,3.63535656,3044.2,3044.1,0.467]
[1764276627946,3.63535656,3044.2,3044.1,0.9176]
[1764276628258,0.30935959,3044.2,3044.1,0.9176]
[1764276628554,0.30935959,3044.2,3044.1,1.1103]
[1764276630141,3.59429487,3044.2,3044.1,1.1103]
[1764276630862,4.44525656,3044.2,3044.1,0.001]
[1764276631055,4.67256956,3044.2,3044.1,0.001]
[1764276631254,3.63535656,3044.2,3044.1,0.467]
[1764276632270,0.35042128,3044.2,3044.1,0.467]
[1764276632573,0.35042128,3044.2,3044.1,1.1103]
[1764276632574,0.30935959,3044.2,3044.1,1.1103]
[1764276633144,0.51735959,3044.2,3044.1,1.1103]
[1764276637181,3.80229487,3044.2,3044.1,1.1103]
[1764276637748,0.51735959,3044.2,3044.1,1.1103]
[1764276637983,0.30935959,3044.2,3044.1,1.1103]
[1764276638578,0.30935959,3044.2,3044.1,1.5508468]
[1764276638781,0.30935959,3044.2,3044.1,4.83588999]
[1764276639694,0.30935959,3044.2,3044.1,4.84396742]
[1764276639990,0.30935959,3044.2,3044.1,4.93588999]
[1764276640192,0.30935959,3044.2,3044.1,5.6614841]
[1764276640392,0.30935959,3044.2,3044.1,5.66956153]
[1764276640556,0.30935959,3044.2,3044.1,6.07506553]
[1764276640756,0.30935959,3044.2,3044.1,6.0669881]
[1764276642296,0.30935959,3044.2,3044.1,6.37634769]
[1764276642662,0.30935959,3044.2,3044.1,9.56611179]
[1764276643394,0.002,3044.2,3044.1,9.56611179]
[1764276644275,0.002,3044.2,3044.1,9.77311179]
[1764276644793,0.002,3044.2,3044.1,10.14683878]
[1764276650493,0.002,3044.2,3044.1,6.55157068]
[1764276650699,0.002,3044.2,3044.1,6.55964811]
[1764276650888,0.002,3044.2,3044.1,6.55157068]
[1764276654083,0.002,3044.2,3044.1,6.55964811]
[1764276659974,0.002,3044.2,3044.1,6.96515211]
[1764276660174,0.002,3044.2,3044.1,6.95707468]
[1764276661293,0.002,3044.3,3044.2,1.13109811]
[1764276661601,0.002,3044.6,3044.5,0.505504]
[1764276661768,0.002,3044.6,3044.5,8.85544044]
[1764276661971,0.002,3044.6,3044.5,8.8473738]
[1764276662270,0.002,3044.9,3044.8,0.505504]
[1764276662471,0.002,3044.9,3044.8,4.89152075]
[1764276662669,0.002,3045.6,3045.4,0.1]
[1764276662889,0.002,3045.6,3045.3,0.207]
[1764276663099,0.002,3045.6,3045.5,0.4626]
[1764276663321,0.30864109,3045.6,3045.5,0.4626]
[1764276663506,0.61154109,3045.6,3045.3,0.207]
[1764276663705,0.3049,3045.6,3045.4,3.2836409]
[1764276663902,0.3049,3045.6,3045.4,0.68744558]
[1764276664094,0.002,3045.6,3045.5,0.4626]
[1764276664295,0.30858089,3045.6,3045.3,7.03976529]
[1764276664474,0.30858089,3045.6,3045.3,3.75601657]
[1764276664475,0.002,3045.6,3045.3,3.75601657]
[1764276664680,0.4924,3045.6,3045.3,3.28371657]
[1764276664882,0.002,3045.6,3045.3,3.28371657]
[1764276665077,0.002,3045.6,3045.4,0.33837166]
[1764276665474,0.3029,3045.5,3045.4,0.33837166]
[1764276667504,0.7915,3045.5,3045.1,4.00949831]
[1764276668030,0.4886,3045.4,3045.1,4.00949831]
[1764276668710,0.3029,3045.2,3045.1,0.72559411]
[1764276669028,0.3029,3045.2,3044.5,3.3967641]
[1764276669029,0.60956841,3045.2,3044.5,3.3967641]
[1764276669238,0.60956841,3045.2,3044.6,1.11250052]
[1764276669239,0.31156841,3045.1,3044.6,1.11250052]
[1764276669415,0.0049,3045.1,3044.8,0.72559411]
[1764276669623,0.4953,3045.1,3044.8,0.72559411]
[1764276670614,0.3067647,3045.0,3044.8,0.72559411]
[1764276670932,0.4953,3045.1,3044.8,0.72559411]
[1764276671232,0.30677128,3045.0,3044.8,0.72559411]
[1764276671425,0.4904,3045.1,3044.8,4.0098161]
[1764276671629,0.30678205,3045.0,3044.8,4.0098161]
[1764276671831,0.4904,3045.1,3044.8,4.0098161]
[1764276672003,0.30678207,3045.0,3044.8,4.0098161]
[1764276672205,0.4904,3045.1,3044.8,4.0098161]
[1764276672423,0.3029,3044.9,3044.6,4.39690781]
[1764276672950,0.7625,3044.9,3044.6,4.39690781]
[1764276673303,0.7625,3044.9,3044.8,0.001]
[1764276675206,1.06936345,3044.9,3044.8,0.001]
[1764276675626,0.7625,3044.9,3044.8,0.001]
[1764276675907,1.06935813,3044.9,3044.8,0.001]
[1764276676233,0.60975813,3044.9,3044.8,0.001]
[1764276676609,0.30685813,3044.9,3044.8,0.46515854]
[1764276676829,0.207,3045.2,3044.8,1.3171692]
[1764276676999,0.3068738,3045.1,3044.8,1.3171692]
[1764276677337,0.3068738,3045.0,3044.8,1.3171692]
[1764276677524,0.3068738,3044.9,3044.8,1.3171692]
[1764276678734,0.3068738,3044.9,3044.8,5.20065716]
[1764276679337,0.3068738,3044.9,3044.8,5.10065716]
[1764276679816,0.3068738,3044.9,3044.8,5.47438415]
[1764276680137,0.4596,3045.3,3044.8,5.47438415]
[1764276680342,0.30694602,3045.2,3044.9,0.1]
[1764276680538,0.30694602,3045.1,3045.0,6.4818895]
[1764276680736,0.4616,3045.5,3045.0,10.59155585]
[1764276680737,0.002,3045.5,3045.0,10.59155585]
[1764276680937,0.002,3045.5,3045.4,0.4561]
[1764276681235,0.3089131,3045.5,3045.4,0.37372699]
[1764276681543,0.6423131,3045.5,3045.4,0.37372699]
[1764276681851,0.3089131,3045.5,3045.4,0.82982699]
[1764276682148,0.3089131,3045.5,3045.4,1.32902699]
[1764276682338,0.3089131,3045.5,3045.4,1.73158301]
[1764276682537,0.3089131,3045.5,3045.4,4.51602391]
[1764276683959,1.1007131,3045.5,3045.4,0.37372699]
[1764276684114,4.59124618,3045.5,3045.4,0.37372699]
[1764276684762,1.3077131,3045.5,3045.4,0.37372699]
[1764276685918,1.3077131,3045.5,3045.1,3.29199575]
[1764276686119,0.0046,3045.2,3045.1,3.29199575]
[1764276686333,0.3115131,3045.2,3045.1,4.05954458]
[1764276686715,0.3115131,3045.2,3045.1,0.76754883]
[1764276686934,0.7711131,3045.2,3045.1,0.76754883]
[1764276687326,0.7711131,3045.2,3045.1,4.05151323]
[1764276687834,0.3115131,3045.2,3045.1,4.05151323]
[1764276688946,0.3069131,3045.2,3045.1,5.01486369]
[1764276689146,0.3069131,3045.2,3045.1,4.51566369]
[1764276689643,0.3069131,3045.2,3045.1,5.01486369]
[1764276690655,0.3069131,3045.2,3045.1,4.51566369]
[1764276692250,0.6403131,3045.2,3045.1,0.00805046]
[1764276692420,1.0987131,3045.2,3045.0,4.38436382]
[1764276692621,0.3115131,3045.1,3045.0,4.38439334]
[1764276692816,0.4616,3045.5,3045.0,4.3924465]
[1764276693022,0.30737775,3045.4,3045.0,4.3924465]
[1764276693342,0.30737775,3045.3,3045.0,5.20068756]
[1764276693550,0.30737775,3045.2,3045.0,5.20068756]
[1764276693842,0.30737775,3045.1,3045.0,5.20068756]
[1764276694221,0.30737775,3045.1,3045.0,5.65678756]
[1764276695047,0.30737775,3045.1,3045.0,6.15598756]
[1764276695351,0.30737775,3045.1,3045.0,6.2479344]
[1764276695858,0.30737775,3045.1,3045.0,5.6487344]
[1764276696049,0.30737775,3045.1,3045.0,5.1926344]
[1764276696224,0.64077775,3045.1,3045.0,5.20068756]
[1764276696424,0.30737775,3045.1,3045.0,5.65678756]
[1764276696652,0.30737775,3045.1,3045.0,6.25598756]
[1764276698052,0.30737775,3045.1,3045.0,6.66149156]
[1764276698351,0.002,3045.5,3045.4,0.1]
[1764276698556,0.30960152,3045.5,3045.4,0.75994238]
[1764276698746,0.30960152,3045.5,3045.4,1.65411303]
[1764276699052,0.30960152,3045.5,3045.4,4.93775393]
[1764276699559,0.30956807,3045.5,3045.4,4.93775393]
[1764276700953,0.30956807,3045.5,3045.4,3.67861155]
[1764276700954,0.62556807,3045.5,3045.4,3.67861155]
[1764276701342,0.30956807,3045.5,3045.4,4.17801155]
[1764276702154,0.30956807,3045.5,3045.4,4.76065393]
[1764276703235,0.30956807,3045.5,3045.4,4.75261155]
[1764276703636,0.30956807,3045.5,3045.4,5.12633854]
[1764276703954,0.30956807,3045.5,3045.4,4.65173854]
[1764276704149,0.79316807,3045.5,3045.4,4.05233854]
[1764276704355,0.79316807,3045.5,3045.4,3.65736789]
[1764276705471,0.79316807,3045.5,3045.4,0.37372699]
[1764276705672,0.79316807,3045.5,3045.4,3.65736789]
[1764276705875,0.79316807,3045.5,3045.4,0.37372699]
[1764276706573,0.79316807,3045.5,3045.4,3.65736789]
[1764276706773,0.79316807,3045.5,3045.4,0.37372699]
[1764276706963,1.10906807,3045.5,3045.4,0.37372699]
[1764276710288,1.10906807,3045.5,3045.0,1.53483517]
[1764276710289,4.39260115,3045.5,3045.0,0.001]
[1764276710585,0.4836,3045.1,3045.0,0.001]
[1764276710761,0.79116807,3045.1,3045.0,0.001]
[1764276710961,1.10706807,3045.1,3045.0,0.001]
[1764276711988,0.79116807,3045.1,3045.0,0.001]
[1764276712158,1.10706807,3045.1,3045.0,0.001]
[1764276712761,4.39103247,3045.1,3045.0,0.001]
[1764276713990,1.10706807,3045.1,3045.0,0.001]
[1764276714964,4.39103247,3045.1,3045.0,0.001]
[1764276715692,1.10706807,3045.1,3045.0,0.001]
[1764276717662,4.39103247,3045.1,3045.0,0.001]
[1764276718586,1.10706807,3045.1,3045.0,0.001]
[1764276721692,0.30756807,3045.1,3045.0,0.975]
[1764276721994,0.30756807,3045.1,3045.0,4.25907224]
[1764276722195,0.30756807,3045.1,3045.0,5.12235522]
[1764276722692,0.30756807,3045.1,3045.0,4.54775522]
[1764276722869,0.30756807,3045.1,3045.0,5.02235522]
[1764276723431,0.30756807,3045.1,3045.0,4.54775522]
[1764276723864,0.30756807,3045.1,3045.0,1.26368298]
[1764276724197,1.10546807,3045.1,3045.0,0.001]
[1764276724495,1.31446807,3045.1,3045.0,0.001]
[1764276724795,4.59843247,3045.1,3045.0,0.001]
[1764276724999,4.63948202,3045.1,3045.0,0.001]
[1764276725198,7.74787,3045.1,3045.0,0.001]
[1764276725399,10.25338078,3045.1,3045.0,0.001]
[1764276725577,7.1449928,3045.1,3045.0,0.001]
[1764276726377,6.4372092,3045.1,3045.0,0.001]
[1764276726580,6.47825875,3045.1,3045.0,0.001]
[1764276728594,7.18543057,3045.1,3045.0,0.001]
[1764276728795,7.14438102,3045.1,3045.0,0.001]
[1764276729092,6.4372092,3045.1,3045.0,0.001]
[1764276729400,6.47825875,3045.1,3045.0,0.001]
[1764276731881,5.75266464,3045.1,3045.0,0.001]
[1764276735284,0.87361762,3045.1,3045.0,0.001]
[1764276735483,0.51656807,3045.1,3045.0,0.455]
[1764276735688,0.51656807,3045.1,3045.0,0.9158]
[1764276735883,0.51656807,3045.1,3045.0,0.455]
[1764276736392,0.30956807,3045.1,3045.0,0.9158]
[1764276736595,0.30956807,3045.1,3045.0,1.33590797]
[1764276737203,0.30956807,3045.1,3045.0,0.87510797]
[1764276737588,0.30956807,3045.1,3045.0,4.61998021]
[1764276737793,0.30956807,3045.1,3045.0,1.33590797]
[1764276741487,0.30956807,3045.1,3045.0,4.15918021]
[1764276741713,0.30956807,3045.1,3045.0,1.33590797]
[1764276742014,0.30956807,3045.1,3045.0,0.9158]
[1764276742219,0.30956807,3045.1,3045.0,4.19987224]
[1764276744411,0.30956807,3045.1,3045.0,0.9158]
[1764276745205,0.65116807,3045.1,3045.0,0.001]
[1764276746514,0.30956807,3045.1,3045.0,0.455]
[1764276746703,0.30956807,3045.1,3045.0,0.86640054]
[1764276747604,0.30956807,3045.1,3045.0,0.455]
[1764276748105,0.65236807,3045.1,3045.0,0.001]
[1764276748307,1.10766807,3045.1,3045.0,0.001]
[1764276748710,0.65236807,3045.1,3045.0,0.001]
[1764276750429,0.30956807,3045.1,3045.0,0.455]
[1764276750634,0.30956807,3045.1,3045.0,0.41320547]
[1764276750834,0.65346807,3045.1,3045.0,0.001]
[1764276754927,0.30956807,3045.1,3045.0,0.455]
[1764276756540,0.30932293,3045.1,3045.0,0.455]
[1764276761637,1.10752293,3045.1,3045.0,0.001]
[1764276761946,0.65502293,3045.1,3045.0,0.001]
[1764276768828,1.10752293,3045.1,3045.0,0.001]
[1764276769033,4.39148733,3045.1,3045.0,0.001]
[1764276769433,1.10752293,3045.1,3045.0,0.001]
[1764276770039,1.14857248,3045.1,3045.0,0.001]
[1764276771653,0.65612293,3045.1,3045.0,0.001]
[1764276773128,1.10752293,3045.1,3045.0,0.001]
[1764276775158,4.39148733,3045.1,3045.0,0.001]
[1764276775352,5.37012709,3045.1,3045.0,0.001]
[1764276776530,5.41117664,3045.1,3045.0,0.001]
[1764276777184,6.12093707,3045.1,3045.0,0.001]
[1764276778265,5.41117664,3045.1,3045.0,0.001]
[1764276783681,9.31002852,3045.1,3045.0,0.001]
[1764276783998,0.405504,3044.8,3044.6,0.001]
[1764276784152,4.42055225,3044.5,3044.4,0.001]
[1764276784348,6.7858053,3044.5,3044.4,0.001]
[1764276784671,10.07041689,3044.5,3044.4,0.001]
[1764276785350,8.77788051,3044.5,3044.4,0.001]
[1764276785546,9.65652027,3044.5,3044.4,0.001]
[1764276786088,9.75652027,3044.5,3044.4,0.001]
[1764276788084,9.65652027,3044.5,3044.4,0.001]
[1764276788284,9.75652027,3044.5,3044.4,0.001]
[1764276789952,6.46706613,3044.5,3044.4,0.001]